lending/lending_fUSD_20250409
["ID","MTS","AMOUNT","RATE_DAILY","PERIOD"]
[357611205,1744235503451,-500.0,0.00038904,2]
[357611206,1744235503463,-500.0,0.00038904,2]
[357611207,1744235503472,-500.0,0.00038904,2]
[357611208,1744235503482,-1127.83,0.00038904,2]
[357611209,1744235503491,-324.29576419,0.00038904,2]
[357611210,1744235503502,-500.0,0.00038904,2]
[357611211,1744235503511,-507.13,0.00038904,2]
[357611212,1744235503519,-500.0,0.00038904,2]
[357611213,1744235503530,-570.34,0.00038904,2]
[357611214,1744235503539,-1498.03,0.00038904,2]
[357611215,1744235503547,-2525.83,0.00038904,2]
[357611216,1744235503556,-775.82,0.00038904,2]
[357611217,1744235503565,-500.0,0.00038904,2]
[357611218,1744235503574,-500.0,0.00038904,2]
[357611219,1744235503583,-500.0,0.00038904,2]
[357611220,1744235503592,-955.21,0.00038904,2]
[357611221,1744235503601,-1151.05,0.00038904,2]
[357611222,1744235503611,-500.0,0.00038904,2]
[357611223,1744235503620,-500.0,0.00038904,2]
[357611224,1744235503629,-500.0,0.00038904,2]
[357611225,1744235503638,-969.06,0.00038904,2]
[357611226,1744235503646,-500.0,0.00038904,2]
[357611227,1744235503656,-500.0,0.00038904,2]
[357611228,1744235503664,-500.0,0.00038904,2]
[357611229,1744235503673,-511.52,0.00038904,2]
[357611230,1744235503682,-686.74,0.00038904,2]
[357611231,1744235503691,-507.29532797,0.00038904,2]
[357611232,1744235503701,-507.91,0.00038904,2]
[357611233,1744235503711,-500.0,0.00038904,2]
[357611234,1744235503720,-5051.26,0.00038904,2]
[357611235,1744235503729,-500.0,0.00038904,2]
[357611236,1744235503738,-417.55765124,0.00038904,2]
[357611237,1744235503747,-757.52,0.00038904,2]
[357611238,1744235503756,-500.0,0.00038904,2]
[357611239,1744235503766,-778.41918599,0.00038904,2]
[357611240,1744235503775,-303.16560209,0.00038923,14]
[357611241,1744235503784,-3294.9563266,0.00039,5]
[357611242,1744235503793,-2710.82755675,0.00039,120]
[357611243,1744235503802,-1800.0,0.00039,40]
[357611244,1744235503811,-750.0,0.00039,2]
[357611245,1744235503819,-151.0,0.00039,14]
[357611246,1744235503829,-200.0,0.00039079,14]
[357611247,1744235503838,-150.0,0.0003915,3]
[357611248,1744235503847,-4575.9825924,0.00039151,2]
[357611249,1744235503856,-8136.8910008,0.00039151,2]
[357611250,1744235503865,-1021.83874,0.00039151,2]
[357611251,1744235503874,-177057.8905983,0.00039151,2]
[357611252,1744235503884,-3382.1308737,0.00039151,2]
[357611253,1744235503893,-5627.4924405,0.00039151,2]
[357611254,1744235503902,-500.0,0.00039177,2]
[357611255,1744235503911,-500.0,0.00039177,2]
[357611256,1744235503920,-500.0,0.00039177,2]
[357611257,1744235503929,-500.0,0.00039177,2]
[357611258,1744235503939,-500.0,0.00039177,2]
[357611259,1744235503948,-500.0,0.00039177,2]
[357611260,1744235503957,-500.0,0.00039177,2]
[357611261,1744235503966,-500.0,0.00039177,2]
[357611262,1744235503975,-500.0,0.00039177,2]
[357611263,1744235503984,-500.0,0.00039177,2]
[357611264,1744235503993,-500.0,0.00039177,2]
[357611265,1744235504003,-150.0,0.00039177,3]
[357611266,1744235504012,-159.56,0.00039178,2]
[357611267,1744235504021,-151.0,0.00039178,14]
[357611268,1744235504031,-500.0,0.00039178,2]
[357611269,1744235504040,-368.5294252,0.00039178,2]
[357611270,1744235504049,-500.0,0.00039178,2]
[357611271,1744235504059,-500.0,0.00039178,2]
[357611272,1744235504068,-508.2750361,0.00039178,2]
[357611273,1744235504077,-500.0,0.00039178,2]
[357611274,1744235504086,-500.0,0.00039178,2]
[357611275,1744235504095,-500.0,0.00039178,2]
[357611276,1744235504104,-500.0,0.00039178,2]
[357611277,1744235504113,-500.0,0.00039178,2]
[357611278,1744235504122,-624.2255571,0.00039178,2]
[357611279,1744235504131,-500.0,0.00039178,2]
[357611280,1744235504140,-508.12967013,0.00039178,2]
[357611281,1744235504149,-500.0,0.00039178,2]
[357611282,1744235504159,-500.0,0.00039178,2]
[357611283,1744235504168,-872.89554,0.00039178,14]
[357611284,1744235504177,-872.895547,0.00039178,14]
[357611285,1744235504186,-1000.0,0.00039178,2]
[357611286,1744235504195,-512.29361297,0.00039178,2]
[357611287,1744235504205,-151.0,0.00039178,14]
[357611288,1744235504214,-500.0,0.00039178,2]
[357611289,1744235504223,-500.0,0.00039178,2]
[357611290,1744235504232,-768.82,0.00039178,2]
[357611291,1744235504241,-509.32799235,0.00039178,2]
[357611292,1744235504250,-1033.22,0.00039178,2]
[357611293,1744235504260,-201.69513597,0.00039178,2]
[357611294,1744235504269,-500.0,0.00039178,2]
[357611295,1744235504278,-510.1903547,0.00039178,2]
[357611296,1744235504288,-500.0,0.00039178,2]
[357611297,1744235504297,-500.0,0.00039178,2]
[357611298,1744235504306,-690.19,0.00039178,2]
[357611299,1744235504315,-500.0,0.00039178,2]
[357611300,1744235504325,-500.0,0.00039178,2]
[357611301,1744235504334,-500.0,0.00039178,2]
[357611302,1744235504344,-653.93,0.00039178,2]
[357611303,1744235504353,-500.0,0.00039178,2]
[357611304,1744235504363,-500.0,0.00039178,2]
[357611305,1744235504372,-500.0,0.00039178,2]
[357611306,1744235504382,-508.6236772,0.00039178,2]
[357611307,1744235504391,-500.0,0.00039178,2]
[357611308,1744235504401,-500.0,0.00039178,2]
[357611309,1744235504411,-500.0,0.00039178,2]
[357611310,1744235504420,-500.0,0.00039178,2]
[357611311,1744235504429,-500.0,0.00039178,2]
[357611312,1744235504439,-562.39,0.00039178,2]
[357611313,1744235504658,-500.0,0.00039178,2]
[357611314,1744235504668,-509.95509489,0.00039178,2]
[357611315,1744235504677,-299.545268,0.00039178,14]
[357611316,1744235504687,-500.0,0.00039178,2]
[357611317,1744235504696,-299.545268,0.00039178,14]
[357611318,1744235504706,-299.545268,0.00039178,14]
[357611319,1744235504715,-306.05891526,0.00039178,2]
[357611320,1744235504724,-500.0,0.00039178,2]
[357611321,1744235504733,-299.545269,0.00039178,14]
[357611322,1744235504742,-500.0,0.00039178,2]
[357611323,1744235504751,-500.0,0.00039178,2]
[357611324,1744235504760,-500.0,0.00039178,2]
[357611325,1744235504770,-500.0,0.00039178,2]
[357611326,1744235504779,-512.07347083,0.00039178,2]
[357611327,1744235504789,-500.0,0.00039178,2]
[357611328,1744235504798,-523.63,0.00039178,2]
[357611329,1744235504807,-575.25,0.00039178,2]
[357611330,1744235504816,-500.0,0.00039178,2]
[357611331,1744235504826,-151.0,0.00039178,14]
[357611332,1744235504835,-512.34030818,0.00039178,2]
[357611333,1744235504844,-500.0,0.00039178,2]
[357611334,1744235504854,-165.35814151,0.00039178,2]
[357611335,1744235504863,-500.0,0.00039178,2]
[357611336,1744235504873,-500.0,0.00039178,2]
[357611337,1744235504882,-643.66,0.00039178,2]
[357611338,1744235504892,-500.0,0.00039178,2]
[357611339,1744235504902,-500.0,0.00039178,2]
[357611340,1744235504912,-500.0,0.00039178,2]
[357611341,1744235504922,-505.12659638,0.00039178,2]
[357611342,1744235504936,-517.26,0.00039178,2]
[357611343,1744235504946,-500.0,0.00039178,2]
[357611344,1744235504956,-500.0,0.00039178,2]
[357611345,1744235504965,-509.1,0.00039178,2]
[357611346,1744235504975,-508.56759502,0.00039178,2]
[357611347,1744235504985,-500.0,0.00039178,2]
[357611348,1744235504995,-500.0,0.00039178,2]
[357611349,1744235505004,-473.25810324,0.00039178,2]
[357611350,1744235505014,-618.33081496,0.00039178,2]
[357611351,1744235505024,-544.02,0.00039178,2]
[357611352,1744235505034,-1591.25,0.00039178,2]
[357611353,1744235505043,-500.0,0.00039178,2]
[357611354,1744235505053,-500.0,0.00039178,2]
[357611355,1744235505062,-500.0,0.00039178,2]
[357611356,1744235505073,-922.766495,0.00039178,2]
[357611357,1744235505082,-500.0,0.00039178,2]
[357611358,1744235505092,-500.0,0.00039178,2]
[357611359,1744235505103,-500.0,0.00039178,2]
[357611360,1744235505113,-518.36651646,0.00039178,2]
[357611361,1744235505122,-500.0,0.00039178,2]
[357611362,1744235505132,-500.0,0.00039178,2]
[357611363,1744235505143,-500.0,0.00039178,2]
[357611364,1744235505153,-512.97091021,0.00039178,2]
[357611365,1744235505162,-500.0,0.00039178,2]
[357611366,1744235505172,-1481.605419,0.00039178,2]
[357611367,1744235505183,-500.0,0.00039178,2]
[357611368,1744235505192,-512.21,0.00039178,2]
[357611369,1744235505203,-500.0,0.00039178,2]
[357611370,1744235505212,-575.18,0.00039178,2]
[357611371,1744235505222,-500.0,0.00039178,2]
[357611372,1744235505233,-232.031497,0.00039178,14]
[357611373,1744235505243,-232.031497,0.00039178,14]
[357611374,1744235505252,-508.48806967,0.00039178,2]
[357611375,1744235505262,-503.81750399,0.00039178,2]
[357611376,1744235505272,-1103.241651,0.00039178,2]
[357611377,1744235505282,-500.0,0.00039178,2]
[357611378,1744235505291,-232.031497,0.00039178,14]
[357611379,1744235505301,-232.031503,0.00039178,14]
[357611380,1744235505311,-555.55,0.00039178,2]
[357611381,1744235505320,-716.17,0.00039178,2]
[357611382,1744235505330,-569.8,0.00039178,2]
[357611383,1744235505340,-459.83809324,0.00039178,2]
[357611384,1744235505351,-500.0,0.00039178,2]
[357611385,1744235505361,-500.0,0.00039178,2]
[357611386,1744235505371,-500.0,0.00039178,2]
[357611387,1744235505380,-500.0,0.00039178,2]
[357611388,1744235505390,-500.0,0.00039178,2]
[357611389,1744235505400,-500.0,0.00039178,2]
[357611390,1744235505410,-500.0,0.00039178,2]
[357611391,1744235505420,-500.0,0.00039178,2]
[357611392,1744235505430,-508.16711439,0.00039178,2]
[357611393,1744235505440,-500.0,0.00039178,2]
[357611394,1744235505450,-345.76794183,0.00039178,2]
[357611395,1744235505463,-500.0,0.00039178,2]
[357611396,1744235505474,-500.0,0.00039178,2]
[357611397,1744235505484,-500.0,0.00039178,2]
[357611398,1744235505495,-500.0,0.00039178,2]
[357611399,1744235505504,-500.0,0.00039178,2]
[357611400,1744235505515,-500.0,0.00039178,2]
[357611401,1744235505526,-500.0,0.00039178,2]
[357611402,1744235505539,-258.03874722,0.00039178,2]
[357611403,1744235505549,-500.0,0.00039178,2]
[357611404,1744235505559,-277.845457,0.00039178,14]
[357611405,1744235505569,-523.55,0.00039178,2]
[357611406,1744235505579,-277.845457,0.00039178,14]
[357611407,1744235505588,-425.66900755,0.00039178,2]
[357611408,1744235505599,-500.0,0.00039178,2]
[357611409,1744235505609,-277.845457,0.00039178,14]
[357611410,1744235505619,-500.0,0.00039178,2]
[357611411,1744235505629,-277.845453,0.00039178,14]
[357611412,1744235505639,-241.6381502,0.00039178,2]
[357611413,1744235505649,-500.0,0.00039178,2]
[357611414,1744235505659,-641.56,0.00039178,2]
[357611415,1744235505669,-522.12,0.00039178,2]
[357611416,1744235505679,-671.33,0.00039178,2]
[357611417,1744235505688,-500.0,0.00039178,2]
[357611418,1744235505697,-500.0,0.00039178,2]
[357611419,1744235505707,-898.3,0.00039178,2]
[357611420,1744235505718,-500.0,0.00039178,2]
[357611421,1744235505728,-500.0,0.00039178,2]
[357611422,1744235505738,-500.0,0.00039178,2]
[357611423,1744235505747,-500.0,0.00039178,2]
[357611424,1744235505757,-500.0,0.00039178,2]
[357611425,1744235505767,-500.0,0.00039178,2]
[357611426,1744235505776,-500.0,0.00039178,2]
[357611427,1744235505786,-500.0,0.00039178,2]
[357611428,1744235505796,-500.0,0.00039178,2]
[357611429,1744235505806,-156.788597,0.00039178,2]
[357611430,1744235505815,-1488.11,0.00039178,2]
[357611431,1744235505825,-1000.0,0.00039178,2]
[357611432,1744235505835,-500.0,0.00039178,2]
[357611433,1744235505844,-500.0,0.00039178,2]
[357611434,1744235505854,-513.45971735,0.00039178,2]
[357611435,1744235505864,-500.0,0.00039178,2]
[357611436,1744235505873,-189.20080312,0.00039178,2]
[357611437,1744235505883,-500.0,0.00039178,2]
[357611438,1744235505892,-500.0,0.00039178,2]
[357611439,1744235505903,-1346.88,0.00039178,2]
[357611440,1744235505912,-500.0,0.00039178,2]
[357611441,1744235505922,-600.91,0.00039178,2]
[357611442,1744235505932,-500.0,0.00039178,2]
[357611443,1744235505942,-500.0,0.00039178,2]
[357611444,1744235505952,-500.0,0.00039178,2]
[357611445,1744235505961,-500.0,0.00039178,2]
[357611446,1744235505971,-500.0,0.00039178,2]
[357611447,1744235505980,-500.0,0.00039178,2]
[357611448,1744235505990,-1109.78,0.00039178,2]
[357611449,1744235506000,-1062.56,0.00039178,2]
[357611450,1744235506009,-1328.67,0.00039178,2]
[357611451,1744235506019,-1098.1,0.00039178,2]
[357611452,1744235506029,-500.0,0.00039178,2]
[357611453,1744235506039,-500.0,0.00039178,2]
[357611454,1744235506048,-500.0,0.00039178,2]
[357611455,1744235506058,-601.54,0.00039178,2]
[357611456,1744235506067,-500.0,0.00039178,2]
[357611457,1744235506076,-500.0,0.00039178,2]
[357611458,1744235506086,-500.0,0.00039178,2]
[357611459,1744235506097,-2058.98,0.00039178,2]
[357611460,1744235506106,-500.0,0.00039178,2]
[357611461,1744235506116,-704.15,0.00039178,2]
[357611462,1744235506127,-500.0,0.00039178,2]
[357611463,1744235506136,-500.0,0.00039178,2]
[357611464,1744235506146,-500.0,0.00039178,2]
[357611465,1744235506157,-500.0,0.00039178,2]
[357611466,1744235506166,-500.0,0.00039178,2]
[357611467,1744235506176,-500.0,0.00039178,2]
[357611468,1744235506185,-500.0,0.00039178,2]
[357611469,1744235506195,-1533.75,0.00039178,2]
[357611470,1744235506204,-890.15,0.00039178,2]
[357611471,1744235506214,-500.0,0.00039178,2]
[357611472,1744235506224,-2033.59,0.00039178,2]
[357611473,1744235506233,-500.0,0.00039178,2]
[357611474,1744235506245,-1091.45,0.00039178,2]
[357611475,1744235506254,-500.0,0.00039178,2]
[357611476,1744235506263,-998.38,0.00039178,2]
[357611477,1744235506273,-500.0,0.00039178,2]
[357611478,1744235506281,-493.68533728,0.00039178,2]
[357611479,1744235506291,-500.0,0.00039178,2]
[357611480,1744235506300,-335.32720913,0.00039178,2]
[357611481,1744235506310,-990.73,0.00039178,2]
[357611482,1744235506319,-1255.28,0.00039178,2]
[357611483,1744235506329,-740.02,0.00039178,2]
[357611484,1744235506338,-500.0,0.00039178,2]
[357611485,1744235506348,-500.0,0.00039178,2]
[357611486,1744235506357,-840.51,0.00039178,2]
[357611487,1744235506366,-628.73,0.00039178,2]
[357611488,1744235506376,-500.0,0.00039178,2]
[357611489,1744235506385,-851.89,0.00039178,2]
[357611490,1744235506394,-1122.08,0.00039178,2]
[357611491,1744235506403,-500.0,0.00039178,2]
[357611492,1744235506413,-500.0,0.00039178,2]
[357611493,1744235506421,-500.0,0.00039178,2]
[357611494,1744235506431,-1594.69,0.00039178,2]
[357611495,1744235506440,-846.31,0.00039178,2]
[357611496,1744235506450,-500.0,0.00039178,2]
[357611497,1744235506463,-500.0,0.00039178,2]
[357611498,1744235506472,-500.0,0.00039178,2]
[357611499,1744235506481,-500.00507007,0.00039178,2]
[357611500,1744235506491,-634.01,0.00039178,2]
[357611501,1744235506501,-500.0,0.00039178,2]
[357611502,1744235506510,-500.0,0.00039178,2]
[357611503,1744235506519,-500.0,0.00039178,2]
[357611504,1744235506530,-1789.24,0.00039178,2]
[357611505,1744235506539,-500.0,0.00039178,2]
[357611506,1744235506548,-500.0,0.00039178,2]
[357611507,1744235506557,-500.0,0.00039178,2]
[357611508,1744235506566,-2100.49,0.00039178,2]
[357611509,1744235506575,-500.0,0.00039178,2]
[357611510,1744235506585,-1008.97,0.00039178,2]
[357611511,1744235506594,-500.0,0.00039178,2]
[357611512,1744235506605,-904.2,0.00039178,2]
[357611513,1744235506614,-575.38,0.00039178,2]
[357611514,1744235506624,-980.91,0.00039178,2]
[357611515,1744235506633,-500.0,0.00039178,2]
[357611516,1744235506643,-744.07,0.00039178,2]
[357611517,1744235506652,-549.63428846,0.00039178,2]
[357611518,1744235506662,-500.0,0.00039178,2]
[357611519,1744235506671,-500.0,0.00039178,2]
[357611520,1744235506680,-500.0,0.00039178,2]
[357611521,1744235506689,-1364.94,0.00039178,2]
[357611522,1744235506699,-500.0,0.00039178,2]
[357611523,1744235506708,-500.0,0.00039178,2]
[357611524,1744235506717,-500.0,0.00039178,2]
[357611525,1744235506726,-500.0,0.00039178,2]
[357611526,1744235506736,-500.0,0.00039178,2]
[357611527,1744235506745,-417.44735604,0.00039178,2]
[357611528,1744235506755,-500.0,0.00039178,2]
[357611529,1744235506764,-747.87,0.00039178,2]
[357611530,1744235506775,-500.0,0.00039178,2]
[357611531,1744235506785,-500.0,0.00039178,2]
[357611532,1744235506794,-850.11,0.00039178,2]
[357611533,1744235506804,-1247.64,0.00039178,2]
[357611534,1744235506814,-1102.32,0.00039178,2]
[357611535,1744235506824,-518.56598655,0.00039178,2]
[357611536,1744235506833,-659.47,0.00039178,2]
[357611537,1744235506842,-588.76,0.00039178,2]
[357611538,1744235506852,-500.0,0.00039178,2]
[357611539,1744235506862,-500.0,0.00039178,2]
[357611540,1744235506871,-500.0,0.00039178,2]
[357611541,1744235506881,-227.09918388,0.00039178,2]
[357611542,1744235506891,-626.4,0.00039178,2]
[357611543,1744235506900,-500.0,0.00039178,2]
[357611544,1744235506909,-151.0,0.00039178,14]
[357611545,1744235506919,-501.32848879,0.00039178,2]
[357611546,1744235506929,-500.0,0.00039178,2]
[357611547,1744235506940,-500.0,0.00039178,2]
[357611548,1744235506949,-500.0,0.00039178,2]
[357611549,1744235506959,-992.17,0.00039178,2]
[357611550,1744235506968,-500.0,0.00039178,2]
[357611551,1744235506978,-500.0,0.00039178,2]
[357611552,1744235506988,-500.0,0.00039178,2]
[357611553,1744235506997,-500.0,0.00039178,2]
[357611554,1744235507006,-500.0,0.00039178,2]
[357611555,1744235507016,-500.0,0.00039178,2]
[357611556,1744235507025,-629.59740534,0.00039178,2]
[357611557,1744235507035,-863.74,0.00039178,2]
[357611558,1744235507044,-669.2,0.00039178,2]
[357611559,1744235507053,-500.0,0.00039178,2]
[357611560,1744235507063,-500.2,0.00039178,2]
[357611561,1744235507073,-500.0,0.00039178,2]
[357611562,1744235507083,-500.0,0.00039178,2]
[357611563,1744235507092,-500.0,0.00039178,2]
[357611564,1744235507104,-500.0,0.00039178,2]
[357611565,1744235507114,-623.22,0.00039178,2]
[357611566,1744235507123,-987.07,0.00039178,2]
[357611567,1744235507133,-500.0,0.00039178,2]
[357611568,1744235507143,-500.0,0.00039178,2]
[357611569,1744235507152,-500.0,0.00039178,2]
[357611570,1744235507161,-500.0,0.00039178,2]
[357611571,1744235507171,-500.0,0.00039178,2]
[357611572,1744235507180,-500.0,0.00039178,2]
[357611573,1744235507190,-206.15102599,0.00039178,2]
[357611574,1744235507200,-500.0,0.00039178,2]
[357611575,1744235507210,-663.93,0.00039178,2]
[357611576,1744235507219,-314.18107869,0.00039178,2]
[357611577,1744235507230,-1150.41,0.00039178,2]
[357611578,1744235507240,-500.0,0.00039178,2]
[357611579,1744235507249,-500.0,0.00039178,2]
[357611580,1744235507259,-950.19,0.00039178,2]
[357611581,1744235507269,-500.0,0.00039178,2]
[357611582,1744235507278,-700.43,0.00039178,2]
[357611583,1744235507288,-2733.502155,0.00039178,14]
[357611584,1744235507298,-1644.09,0.00039178,2]
[357611585,1744235507307,-2733.502155,0.00039178,14]
[357611586,1744235507316,-500.0,0.00039178,2]
[357611587,1744235507325,-2733.502155,0.00039178,14]
[357611588,1744235507335,-2733.502152,0.00039178,14]
[357611589,1744235507344,-1196.11,0.00039178,2]
[357611590,1744235507355,-533.1,0.00039178,2]
[357611591,1744235507364,-500.0,0.00039178,2]
[357611592,1744235507373,-410.729687,0.00039178,14]
[357611593,1744235507383,-410.72968594,0.00039178,14]
[357611594,1744235507392,-500.0,0.00039178,2]
[357611595,1744235507402,-500.0,0.00039178,2]
[357611596,1744235507411,-500.0,0.00039178,2]
[357611597,1744235507421,-500.0,0.00039178,2]
[357611598,1744235507430,-503.65869516,0.00039178,2]
[357611599,1744235507439,-500.0,0.00039178,2]
[357611600,1744235507451,-500.0,0.00039178,2]
[357611601,1744235507462,-509.54,0.00039178,2]
[357611602,1744235507472,-500.0,0.00039178,2]
[357611603,1744235507482,-500.0,0.00039178,2]
[357611604,1744235507493,-605.75,0.00039178,2]
[357611605,1744235507502,-872.19,0.00039178,2]
[357611606,1744235507512,-500.0,0.00039178,2]
[357611607,1744235507522,-500.0,0.00039178,2]
[357611608,1744235507533,-2888.05,0.00039178,2]
[357611609,1744235507543,-509.81205352,0.00039178,2]
[357611610,1744235507764,-1530.18,0.00039178,2]
[357611611,1744235507775,-218.61349221,0.00039178,2]
[357611612,1744235507784,-500.0,0.00039178,2]
[357611613,1744235507794,-621.31690677,0.00039178,2]
[357611614,1744235507803,-538.29,0.00039178,2]
[357611615,1744235507812,-500.0,0.00039178,2]
[357611616,1744235507821,-500.0,0.00039178,2]
[357611617,1744235507831,-500.0,0.00039178,2]
[357611618,1744235507840,-1392.95,0.00039178,2]
[357611619,1744235507850,-500.0,0.00039178,2]
[357611620,1744235507860,-529.21,0.00039178,2]
[357611621,1744235507869,-760.73,0.00039178,2]
[357611622,1744235507878,-500.0,0.00039178,2]
[357611623,1744235507887,-1014.21,0.00039178,2]
[357611624,1744235507896,-500.0,0.00039178,2]
[357611625,1744235507905,-728.15,0.00039178,2]
[357611626,1744235507915,-671.68,0.00039178,2]
[357611627,1744235507925,-500.0,0.00039178,2]
[357611628,1744235507934,-246.80771442,0.00039178,2]
[357611629,1744235507944,-582.4,0.00039178,2]
[357611630,1744235507954,-500.0,0.00039178,2]
[357611631,1744235507963,-500.0,0.00039178,2]
[357611632,1744235507973,-600.66,0.00039178,2]
[357611633,1744235507982,-500.0,0.00039178,2]
[357611634,1744235507992,-500.0,0.00039178,2]
[357611635,1744235508001,-905.89,0.00039178,2]
[357611636,1744235508010,-500.0,0.00039178,2]
[357611637,1744235508021,-640.01,0.00039178,120]
[357611638,1744235508030,-500.0,0.00039178,2]
[357611639,1744235508039,-632.93676292,0.00039178,2]
[357611640,1744235508049,-500.0,0.00039178,2]
[357611641,1744235508058,-500.0,0.00039178,2]
[357611642,1744235508068,-600.12,0.00039178,2]
[357611643,1744235508078,-500.0,0.00039178,2]
[357611644,1744235508087,-500.0,0.00039178,2]
[357611645,1744235508096,-500.0,0.00039178,2]
[357611646,1744235508107,-500.0,0.00039178,2]
[357611647,1744235508116,-626.51337593,0.00039178,2]
[357611648,1744235508126,-621.38,0.00039178,2]
[357611649,1744235508135,-500.0,0.00039178,2]
[357611650,1744235508145,-574.51,0.00039178,2]
[357611651,1744235508155,-696.24,0.00039178,2]
[357611652,1744235508165,-500.0,0.00039178,2]
[357611653,1744235508175,-736.46,0.00039178,2]
[357611654,1744235508185,-564.04,0.00039178,2]
[357611655,1744235508194,-500.0,0.00039178,2]
[357611656,1744235508203,-524.21301842,0.00039178,2]
[357611657,1744235508213,-500.0,0.00039178,2]
[357611658,1744235508223,-508.17561329,0.00039178,2]
[357611659,1744235508232,-420.08695107,0.00039178,2]
[357611660,1744235508243,-662.39,0.00039178,2]
[357611661,1744235508252,-1138.96,0.00039178,2]
[357611662,1744235508262,-500.0,0.00039178,2]
[357611663,1744235508271,-500.0,0.00039178,2]
[357611664,1744235508281,-506.09,0.00039178,2]
[357611665,1744235508290,-500.0,0.00039178,2]
[357611666,1744235508300,-151.0,0.00039178,14]
[357611667,1744235508310,-500.0,0.00039178,2]
[357611668,1744235508319,-557.52,0.00039178,2]
[357611669,1744235508329,-593.38,0.00039178,2]
[357611670,1744235508339,-500.0,0.00039178,2]
[357611671,1744235508349,-978.21,0.00039178,2]
[357611672,1744235508360,-203.198307,0.00039178,14]
[357611673,1744235508369,-510.84512825,0.00039178,2]
[357611674,1744235508379,-563.85058513,0.00039178,2]
[357611675,1744235508388,-500.0,0.00039178,2]
[357611676,1744235508398,-203.19831,0.00039178,14]
[357611677,1744235508408,-500.0,0.00039178,2]
[357611678,1744235508417,-879.62,0.00039178,2]
[357611679,1744235508427,-500.0,0.00039178,2]
[357611680,1744235508437,-915.14,0.00039178,2]
[357611681,1744235508450,-378.49823173,0.00039178,2]
[357611682,1744235508464,-972.17,0.00039178,2]
[357611683,1744235508474,-500.0,0.00039178,2]
[357611684,1744235508484,-500.0,0.00039178,2]
[357611685,1744235508494,-500.0,0.00039178,2]
[357611686,1744235508505,-415.326059,0.00039178,14]
[357611687,1744235508515,-500.0,0.00039178,2]
[357611688,1744235508525,-500.0,0.00039178,2]
[357611689,1744235508536,-500.0,0.00039178,2]
[357611690,1744235508547,-689.1,0.00039178,2]
[357611691,1744235508557,-500.0,0.00039178,2]
[357611692,1744235508566,-693.42,0.00039178,2]
[357611693,1744235508576,-500.0,0.00039178,2]
[357611694,1744235508586,-500.0,0.00039178,2]
[357611695,1744235508596,-415.326061,0.00039178,14]
[357611696,1744235508608,-500.0,0.00039178,2]
[357611697,1744235508618,-500.0,0.00039178,2]
[357611698,1744235508628,-500.0,0.00039178,2]
[357611699,1744235508638,-1204.18,0.00039178,2]
[357611700,1744235508648,-500.0,0.00039178,2]
[357611701,1744235508657,-500.0,0.00039178,2]
[357611702,1744235508667,-2109.43,0.00039178,2]
[357611703,1744235508677,-922.86,0.00039178,2]
[357611704,1744235508687,-500.0,0.00039178,2]